[Event "GrandPrix_29.05"]
[Site "Chess.com"]
[Date "2020.05.29"]
[Round "4"]
[White "Semen_Khanin"]
[Black "temus_galaktionov"]
[Result "0-1"]
[WhiteElo "2427"]
[BlackElo "2439"]
[TimeControl "600+2"]
[EndTime "11:01:34 PDT"]
[Termination "temus_galaktionov won by resignation"]

1. e4 {[%clk 0:10:01.9]} 1... c6 {[%clk 0:10:01.9]} 2. d4 {[%clk 0:10:03.2]}
2... g6 {[%clk 0:10:03.2]} 3. Nd2 {[%clk 0:10:05.1]} 3... Bg7 {[%clk 0:10:04]}
4. Ngf3 {[%clk 0:10:05.7]} 4... d6 {[%clk 0:10:05]} 5. Bd3 {[%clk 0:10:03]} 5...
Nd7 {[%clk 0:10:05.6]} 6. Nf1 {[%clk 0:10:02.3]} 6... e5 {[%clk 0:10:04.4]} 7.
c3 {[%clk 0:09:58.9]} 7... Ngf6 {[%clk 0:09:59.8]} 8. Ng3 {[%clk 0:09:59.1]}
8... O-O {[%clk 0:09:54.4]} 9. O-O {[%clk 0:09:58.6]} 9... Re8 {[%clk
0:09:55.2]} 10. Re1 {[%clk 0:09:59.5]} 10... b6 {[%clk 0:09:54.2]} 11. a4 {[%clk
0:09:58.9]} 11... a5 {[%clk 0:09:54.8]} 12. h4 {[%clk 0:09:47.8]} 12... Qc7
{[%clk 0:09:49.1]} 13. h5 {[%clk 0:09:45.2]} 13... Bb7 {[%clk 0:09:40.9]} 14. h6
{[%clk 0:09:26]} 14... Bf8 {[%clk 0:09:29.2]} 15. dxe5 {[%clk 0:09:21.5]} 15...
dxe5 {[%clk 0:09:29.4]} 16. Bc4 {[%clk 0:09:22.1]} 16... Ba6 {[%clk 0:09:27.1]}
17. Ba2 {[%clk 0:07:14]} 17... c5 {[%clk 0:09:22.6]} 18. Bg5 {[%clk 0:06:59.9]}
18... c4 {[%clk 0:09:17.2]} 19. Nd2 {[%clk 0:07:00.8]} 19... Rac8 {[%clk
0:09:12.8]} 20. Qf3 {[%clk 0:07:01]} 20... Be7 {[%clk 0:09:04.9]} 21. Ngf1
{[%clk 0:06:54.4]} 21... Qd6 {[%clk 0:08:06.8]} 22. Rad1 {[%clk 0:06:44.7]}
22... Qe6 {[%clk 0:08:06.5]} 23. Ne3 {[%clk 0:06:44.6]} 23... Rc5 {[%clk
0:07:26.4]} 24. b4 {[%clk 0:04:44.7]} 24... cxb3 {[%clk 0:07:18.7]} 25. Bxb3
{[%clk 0:04:45.5]} 25... Qc6 {[%clk 0:07:20.1]} 26. Nd5 {[%clk 0:04:42.7]} 26...
Bd8 {[%clk 0:07:21]} 27. Nf1 {[%clk 0:04:09.5]} 27... Nxd5 {[%clk 0:03:59.3]}
28. Bxd5 {[%clk 0:04:08.5]} 28... Rxd5 {[%clk 0:04:00.2]} 29. exd5 {[%clk
0:04:09.2]} 29... Qxa4 {[%clk 0:04:01.7]} 30. Bxd8 {[%clk 0:04:01]} 30... Rxd8
{[%clk 0:04:03.6]} 31. Rxe5 {[%clk 0:03:50.7]} 31... Qh4 {[%clk 0:03:45]} 32.
Qe4 {[%clk 0:03:19.7]} 32... Qxe4 {[%clk 0:03:11.8]} 33. Rxe4 {[%clk 0:03:20.6]}
33... Nf6 {[%clk 0:03:10.7]} 34. Rf4 {[%clk 0:03:00.9]} 34... Rd6 {[%clk
0:03:09.4]} 35. Ne3 {[%clk 0:02:59.9]} 35... Kf8 {[%clk 0:03:10.3]} 36. g4
{[%clk 0:02:15.6]} 36... g5 {[%clk 0:03:00.4]} 37. Rf5 {[%clk 0:02:14.3]} 37...
Ne4 {[%clk 0:03:00.9]} 38. c4 {[%clk 0:01:25.7]} 38... Rxh6 {[%clk 0:02:59.7]}
39. Re5 {[%clk 0:01:20.8]} 39... Nd6 {[%clk 0:02:59.5]} 40. Rxg5 {[%clk
0:00:59.7]} 40... Bxc4 {[%clk 0:02:58]} 41. Re5 {[%clk 0:00:27.3]} 41... Bb3
{[%clk 0:02:49.2]} 42. Rc1 {[%clk 0:00:25.3]} 42... a4 {[%clk 0:02:48.4]} 43. g5
{[%clk 0:00:24.3]} 43... Rg6 {[%clk 0:02:26]} 44. f4 {[%clk 0:00:21]} 44... h6
{[%clk 0:02:26.2]} 45. Kf2 {[%clk 0:00:20.1]} 45... a3 {[%clk 0:02:25.8]} 46.
Ng2 {[%clk 0:00:18.4]} 46... hxg5 {[%clk 0:02:21.9]} 47. fxg5 {[%clk 0:00:19.2]}
47... Nc4 {[%clk 0:02:20.8]} 48. Re4 {[%clk 0:00:18.1]} 48... Rxg5 {[%clk
0:02:16.3]} 49. Rexc4 {[%clk 0:00:08.5]} 49... Bxc4 {[%clk 0:02:18.2]} 50. Rxc4
{[%clk 0:00:09.8]} 50... Rxd5 {[%clk 0:02:18.4]} 51. Ne3 {[%clk 0:00:05.7]}
51... Ra5 {[%clk 0:02:13.7]} 52. Nc2 {[%clk 0:00:06.3]} 52... a2 {[%clk
0:02:11.1]} 53. Na1 {[%clk 0:00:07.4]} 53... Ke7 {[%clk 0:02:00.6]} 54. Rb4
{[%clk 0:00:08.4]} 54... Ra6 {[%clk 0:01:59.4]} 55. Ke3 {[%clk 0:00:09.4]} 55...
Kd6 {[%clk 0:02:00.3]} 56. Kd4 {[%clk 0:00:09.2]} 56... Kc6 {[%clk 0:02:01.3]}
57. Kc3 {[%clk 0:00:09.3]} 57... Kd5 {[%clk 0:01:57.1]} 58. Rf4 {[%clk 0:00:10]}
58... Ra7 {[%clk 0:01:57.7]} 59. Kb2 {[%clk 0:00:10.2]} 59... Ke5 {[%clk
0:01:55.9]} 60. Rf1 {[%clk 0:00:10.6]} 60... f5 {[%clk 0:01:55.9]} 61. Nc2
{[%clk 0:00:10.9]} 61... f4 {[%clk 0:01:48.2]} 62. Na3 {[%clk 0:00:12.1]} 62...
b5 {[%clk 0:01:43.3]} 63. Kb3 {[%clk 0:00:04.7]} 63... Ke4 {[%clk 0:01:38.4]}
64. Kb2 {[%clk 0:00:05.6]} 64... f3 {[%clk 0:01:36.3]} 65. Ra1 {[%clk
0:00:06.4]} 65... f2 {[%clk 0:01:32.6]} 66. Nc2 {[%clk 0:00:07]} 66... Rf7
{[%clk 0:01:22.2]} 67. Rf1 {[%clk 0:00:05.4]} 67... Kd3 {[%clk 0:01:15.5]} 68.
Kb3 {[%clk 0:00:03.8]} 68... Ke2 {[%clk 0:01:08.5]} 69. Ra1 {[%clk 0:00:04.8]}
69... f1=Q {[%clk 0:01:01.2]} 70. Rxf1 {[%clk 0:00:05.5]} 70... Rxf1 {[%clk
0:01:00.6]} 71. Kxa2 {[%clk 0:00:07.4]} 71... Kd3 {[%clk 0:00:59.6]} 72. Kb2
{[%clk 0:00:06.2]} 72... Rf2 {[%clk 0:00:58.5]} 0-1

[Event "GrandPrix_29.05"]
[Site "Chess.com"]
[Date "2020.05.29"]
[Round "4"]
[White "GM_RobertoMogranzini"]
[Black "Nikithebest"]
[Result "0-1"]
[WhiteElo "1812"]
[BlackElo "2140"]
[TimeControl "600+2"]
[EndTime "11:01:41 PDT"]
[Termination "Nikithebest won by resignation"]

1. c4 {[%clk 0:10:01.9]} 1... c5 {[%clk 0:09:55.2]} 2. g3 {[%clk 0:10:01.3]}
2... g6 {[%clk 0:09:54.3]} 3. Bg2 {[%clk 0:10:02.5]} 3... Nc6 {[%clk 0:09:53.1]}
4. Nc3 {[%clk 0:10:03.8]} 4... Bg7 {[%clk 0:09:54]} 5. d3 {[%clk 0:10:04.4]}
5... d6 {[%clk 0:09:54.9]} 6. Bd2 {[%clk 0:10:03.4]} 6... Bf5 {[%clk 0:09:55.1]}
7. Qc1 {[%clk 0:09:56.9]} 7... Qd7 {[%clk 0:09:54.9]} 8. h4 {[%clk 0:09:57.3]}
8... h5 {[%clk 0:09:55.5]} 9. a3 {[%clk 0:09:47.2]} 9... Rc8 {[%clk 0:09:10]}
10. b4 {[%clk 0:09:39.4]} 10... b6 {[%clk 0:09:08.1]} 11. Rb1 {[%clk 0:09:19.9]}
11... Nh6 {[%clk 0:09:06.9]} 12. Nd5 {[%clk 0:09:05.9]} 12... Ng4 {[%clk
0:08:58]} 13. Bc3 {[%clk 0:08:59.6]} 13... O-O {[%clk 0:07:25.2]} 14. Bxg7
{[%clk 0:08:55.8]} 14... Kxg7 {[%clk 0:07:26.6]} 15. Nf3 {[%clk 0:08:54.2]}
15... Nd4 {[%clk 0:07:15.7]} 16. Qb2 {[%clk 0:08:32]} 16... e5 {[%clk
0:07:06.3]} 17. O-O {[%clk 0:08:08.7]} 17... Nxf3+ {[%clk 0:06:21.5]} 18. Bxf3
{[%clk 0:07:54]} 18... Nf6 {[%clk 0:06:15.6]} 19. Nxf6 {[%clk 0:07:49.6]} 19...
Kxf6 {[%clk 0:06:16.8]} 20. Bg2 {[%clk 0:06:22.4]} 20... Qe7 {[%clk 0:06:15.4]}
21. e4 {[%clk 0:06:20]} 21... Bg4 {[%clk 0:05:55.8]} 22. f3 {[%clk 0:06:21.3]}
22... Bd7 {[%clk 0:05:53.2]} 23. f4 {[%clk 0:06:22.5]} 23... Kg7 {[%clk
0:05:52.9]} 24. f5 {[%clk 0:06:23]} 24... f6 {[%clk 0:05:47.5]} 25. Qe2 {[%clk
0:06:02]} 25... Rh8 {[%clk 0:05:38.6]} 26. Rf2 {[%clk 0:05:57.5]} 26... gxf5
{[%clk 0:05:36.3]} 27. exf5 {[%clk 0:05:57.6]} 27... Bc6 {[%clk 0:05:08.3]} 28.
b5 {[%clk 0:05:43.5]} 28... Bxg2 {[%clk 0:05:08.1]} 29. Rxg2 {[%clk 0:05:45.4]}
29... Rcg8 {[%clk 0:04:30]} 30. Qe4 {[%clk 0:05:28.9]} 30... Qd7 {[%clk
0:04:30.9]} 31. Kh2 {[%clk 0:05:21.3]} 31... Kf7 {[%clk 0:04:32]} 32. g4 {[%clk
0:05:07.9]} 32... hxg4 {[%clk 0:04:30.8]} 33. Rxg4 {[%clk 0:05:09.8]} 33... Rxg4
{[%clk 0:04:14.5]} 34. Qxg4 {[%clk 0:05:11.7]} 34... Rg8 {[%clk 0:04:15.7]} 35.
Qe4 {[%clk 0:05:03.3]} 35... Kf8 {[%clk 0:04:12]} 36. Rg1 {[%clk 0:04:46]} 36...
Rxg1 {[%clk 0:04:02]} 37. Kxg1 {[%clk 0:04:47.9]} 37... Qg7+ {[%clk 0:03:54.6]}
38. Kf2 {[%clk 0:04:47.4]} 38... Qd7 {[%clk 0:03:44.1]} 39. Ke2 {[%clk
0:04:43.1]} 39... Qe8 {[%clk 0:02:24.3]} 40. a4 {[%clk 0:04:36]} 40... Qh5+
{[%clk 0:02:23.4]} 41. Kd2 {[%clk 0:04:37]} 41... Qh6+ {[%clk 0:02:21.6]} 42.
Kc2 {[%clk 0:04:36.9]} 42... Qh5 {[%clk 0:01:37.9]} 43. Kd2 {[%clk 0:03:21.2]}
43... Kg7 {[%clk 0:01:36.6]} 44. Ke1 {[%clk 0:03:08.1]} 44... Kh6 {[%clk
0:01:35.7]} 45. Kd2 {[%clk 0:02:54.6]} 45... Kh7 {[%clk 0:01:34.7]} 46. Ke1
{[%clk 0:02:13.8]} 46... Kh6 {[%clk 0:01:35.6]} 47. Kf2 {[%clk 0:02:00.3]} 47...
Qd1 {[%clk 0:01:31.2]} 48. Qf3 {[%clk 0:01:18.3]} 48... Qxa4 {[%clk 0:01:00.8]}
49. Qg4 {[%clk 0:00:19.4]} 49... Qc2+ {[%clk 0:00:48.9]} 50. Ke3 {[%clk
0:00:19.5]} 50... Qc1+ {[%clk 0:00:40.2]} 51. Ke4 {[%clk 0:00:11.8]} 51... Qh1+
{[%clk 0:00:30]} 52. Ke3 {[%clk 0:00:12.8]} 52... Qc1+ {[%clk 0:00:20.1]} 53.
Ke4 {[%clk 0:00:09]} 53... Qh1+ {[%clk 0:00:18.6]} 54. Ke3 {[%clk 0:00:10]}
54... Qe1+ {[%clk 0:00:14]} 55. Kf3 {[%clk 0:00:09.6]} 55... Qf1+ {[%clk
0:00:08.1]} 56. Ke3 {[%clk 0:00:10.1]} 56... Qe1+ {[%clk 0:00:07.3]} 57. Kf3
{[%clk 0:00:11.1]} 57... Qd1+ {[%clk 0:00:06.9]} 58. Kg3 {[%clk 0:00:11.8]}
58... Qxd3+ {[%clk 0:00:06.7]} 59. Kh2 {[%clk 0:00:12.8]} 59... Qd2+ {[%clk
0:00:07.6]} 60. Kh1 {[%clk 0:00:13.1]} 60... Qe1+ {[%clk 0:00:08.3]} 61. Kh2
{[%clk 0:00:14.3]} 61... Qf2+ {[%clk 0:00:08.9]} 62. Kh1 {[%clk 0:00:15.3]}
62... Qe1+ {[%clk 0:00:06.8]} 63. Kh2 {[%clk 0:00:16.5]} 63... Qd2+ {[%clk
0:00:07.2]} 64. Kh1 {[%clk 0:00:17.8]} 64... Qc1+ {[%clk 0:00:08.5]} 65. Kh2
{[%clk 0:00:18.9]} 65... Qf4+ {[%clk 0:00:09]} 66. Qxf4+ {[%clk 0:00:16.1]}
66... exf4 {[%clk 0:00:10.9]} 0-1

[Event "GrandPrix_29.05"]
[Site "Chess.com"]
[Date "2020.05.29"]
[Round "4"]
[White "LiamVrolijk"]
[Black "Zubrrr"]
[Result "0-1"]
[WhiteElo "2293"]
[BlackElo "2605"]
[TimeControl "600+2"]
[EndTime "11:01:43 PDT"]
[Termination "Zubrrr won by resignation"]

1. c4 {[%clk 0:10:01.9]} 1... f5 {[%clk 0:10:00.2]} 2. g3 {[%clk 0:09:58.7]}
2... Nf6 {[%clk 0:10:01.1]} 3. Bg2 {[%clk 0:09:59.8]} 3... g6 {[%clk 0:10:02.6]}
4. d4 {[%clk 0:09:59.4]} 4... Bg7 {[%clk 0:10:03.9]} 5. Nh3 {[%clk 0:10:00.5]}
5... O-O {[%clk 0:10:04.5]} 6. O-O {[%clk 0:10:01.6]} 6... Nc6 {[%clk
0:09:20.2]} 7. Nc3 {[%clk 0:09:50.3]} 7... d6 {[%clk 0:07:12.5]} 8. d5 {[%clk
0:09:37.9]} 8... Na5 {[%clk 0:06:37.2]} 9. Qd3 {[%clk 0:08:43.9]} 9... c5 {[%clk
0:06:35]} 10. Bd2 {[%clk 0:06:38]} 10... a6 {[%clk 0:05:59.8]} 11. b3 {[%clk
0:06:09.3]} 11... Rb8 {[%clk 0:05:44.2]} 12. Nf4 {[%clk 0:05:37.1]} 12... Ne8
{[%clk 0:03:46.9]} 13. Rab1 {[%clk 0:05:23.4]} 13... Bd7 {[%clk 0:03:21.8]} 14.
e4 {[%clk 0:05:19]} 14... b5 {[%clk 0:03:18.6]} 15. Bh3 {[%clk 0:03:43.2]} 15...
bxc4 {[%clk 0:01:00.2]} 16. bxc4 {[%clk 0:03:45.1]} 16... Rb4 {[%clk 0:01:00.9]}
17. Nce2 {[%clk 0:02:20.6]} 17... Nxc4 {[%clk 0:01:00.2]} 18. Bxb4 {[%clk
0:02:10.4]} 18... Ne5 {[%clk 0:01:01]} 19. Qxa6 {[%clk 0:01:53.7]} 19... cxb4
{[%clk 0:01:02]} 20. exf5 {[%clk 0:01:54.9]} 20... Nc7 {[%clk 0:00:41.6]} 21.
Qb7 {[%clk 0:01:21.9]} 21... Bc8 {[%clk 0:00:32.6]} 22. Qxb4 {[%clk 0:01:19.6]}
22... g5 {[%clk 0:00:22.7]} 23. Ne6 {[%clk 0:01:17.1]} 23... Nxe6 {[%clk
0:00:23.4]} 24. fxe6 {[%clk 0:01:15.9]} 24... Ba6 {[%clk 0:00:24.4]} 25. Qe4
{[%clk 0:01:01]} 25... Bd3 {[%clk 0:00:24.6]} 26. Qe3 {[%clk 0:00:54.1]} 26...
Rf3 {[%clk 0:00:25.2]} 27. Qa7 {[%clk 0:00:22.4]} 27... Bxb1 {[%clk 0:00:06.7]}
28. Rxb1 {[%clk 0:00:22.7]} 28... Rf8 {[%clk 0:00:07.5]} 29. Nd4 {[%clk
0:00:24]} 29... g4 {[%clk 0:00:07]} 30. Bg2 {[%clk 0:00:22.8]} 30... Qe8 {[%clk
0:00:08.3]} 31. Nc6 {[%clk 0:00:20.2]} 31... Bf6 {[%clk 0:00:09.4]} 32. Be4
{[%clk 0:00:11.7]} 32... h5 {[%clk 0:00:04.9]} 33. Rb8 {[%clk 0:00:09.4]} 33...
Nxc6 {[%clk 0:00:04.7]} 34. Rxe8 {[%clk 0:00:04.8]} 34... Nxa7 {[%clk
0:00:05.3]} 35. Rxf8+ {[%clk 0:00:06.7]} 35... Kxf8 {[%clk 0:00:06.7]} 36. Bg6
{[%clk 0:00:08.6]} 36... h4 {[%clk 0:00:07.5]} 37. gxh4 {[%clk 0:00:10.5]} 37...
Bxh4 {[%clk 0:00:08.4]} 38. Bf5 {[%clk 0:00:12.2]} 38... Kg7 {[%clk 0:00:08.9]}
39. Bxg4 {[%clk 0:00:13.6]} 39... Kf6 {[%clk 0:00:10.5]} 40. Be2 {[%clk
0:00:13.4]} 40... Ke5 {[%clk 0:00:11.5]} 41. Bc4 {[%clk 0:00:13.9]} 41... Kd4
{[%clk 0:00:09.7]} 42. Bb3 {[%clk 0:00:14.8]} 42... Nb5 {[%clk 0:00:10.4]} 43.
Kg2 {[%clk 0:00:16.7]} 43... Nc3 {[%clk 0:00:11.1]} 44. Kh3 {[%clk 0:00:18.6]}
44... Bxf2 {[%clk 0:00:11.9]} 45. Kg4 {[%clk 0:00:20.5]} 45... Nxd5 {[%clk
0:00:11.7]} 46. h4 {[%clk 0:00:20.9]} 46... Be3 {[%clk 0:00:08.4]} 47. Kf5
{[%clk 0:00:20]} 47... Nc7 {[%clk 0:00:04.4]} 48. Kg6 {[%clk 0:00:17.6]} 48...
d5 {[%clk 0:00:04.8]} 49. Kf7 {[%clk 0:00:18.7]} 49... Ke5 {[%clk 0:00:06.1]}
50. Kxe7 {[%clk 0:00:19.3]} 50... Nxe6 {[%clk 0:00:07.5]} 51. h5 {[%clk
0:00:17.1]} 51... Bg5+ {[%clk 0:00:08]} 52. Kf7 {[%clk 0:00:18.3]} 52... Nf4
{[%clk 0:00:08.3]} 53. Kg7 {[%clk 0:00:18.1]} 53... Bf6+ {[%clk 0:00:05.2]} 54.
Kh6 {[%clk 0:00:19.7]} 54... d4 {[%clk 0:00:06.1]} 55. a4 {[%clk 0:00:21.3]}
55... Bd8 {[%clk 0:00:05.7]} 56. Bd1 {[%clk 0:00:20.9]} 56... Kf6 {[%clk
0:00:06.9]} 57. Bc2 {[%clk 0:00:19.9]} 57... d3 {[%clk 0:00:07.9]} 58. Bd1
{[%clk 0:00:21.4]} 58... Nd5 {[%clk 0:00:08.3]} 59. Kh7 {[%clk 0:00:20.7]} 59...
Ne3 {[%clk 0:00:06.8]} 60. Bb3 {[%clk 0:00:22]} 60... d2 {[%clk 0:00:03.9]} 61.
h6 {[%clk 0:00:13.6]} 61... Kg5 {[%clk 0:00:05.2]} 62. Bd1 {[%clk 0:00:15.2]}
62... Nxd1 {[%clk 0:00:04.8]} 0-1

[Event "GrandPrix_29.05"]
[Site "Chess.com"]
[Date "2020.05.29"]
[Round "4"]
[White "ValeriyGrinev"]
[Black "tsaruk_maks"]
[Result "0-1"]
[WhiteElo "2041"]
[BlackElo "2238"]
[TimeControl "600+2"]
[EndTime "11:01:43 PDT"]
[Termination "tsaruk_maks won by resignation"]

1. c4 {[%clk 0:10:01.9]} 1... Nf6 {[%clk 0:09:59.6]} 2. Nc3 {[%clk 0:10:02.1]}
2... e5 {[%clk 0:10:00.6]} 3. g3 {[%clk 0:10:02.1]} 3... d5 {[%clk 0:10:01.6]}
4. cxd5 {[%clk 0:10:02.5]} 4... Nxd5 {[%clk 0:10:03.5]} 5. Bg2 {[%clk
0:10:03.1]} 5... Nb6 {[%clk 0:10:05.1]} 6. d3 {[%clk 0:10:03]} 6... Be7 {[%clk
0:10:04.7]} 7. Be3 {[%clk 0:10:03.3]} 7... O-O {[%clk 0:10:02.1]} 8. Rc1 {[%clk
0:10:03.8]} 8... Nc6 {[%clk 0:09:44.1]} 9. Bxc6 {[%clk 0:10:01.8]} 9... bxc6
{[%clk 0:09:45.1]} 10. Nf3 {[%clk 0:10:03.7]} 10... f6 {[%clk 0:09:18.4]} 11. d4
{[%clk 0:09:50.5]} 11... exd4 {[%clk 0:07:36.8]} 12. Qb3+ {[%clk 0:08:58.6]}
12... Kh8 {[%clk 0:07:33.4]} 13. Nxd4 {[%clk 0:08:56.5]} 13... c5 {[%clk
0:06:08.8]} 14. Ne6 {[%clk 0:08:53.4]} 14... c4 {[%clk 0:06:05.1]} 15. Nxd8
{[%clk 0:08:31.5]} 15... cxb3 {[%clk 0:06:06.1]} 16. Nc6 {[%clk 0:08:21.4]}
16... Bb7 {[%clk 0:05:38.5]} 17. Nb5 {[%clk 0:05:12.3]} 17... bxa2 {[%clk
0:05:38.2]} 18. O-O {[%clk 0:05:10.4]} 18... a1=Q {[%clk 0:05:38.6]} 19. Rxa1
{[%clk 0:04:59.9]} 19... Bxc6 {[%clk 0:05:38.7]} 20. Nxc7 {[%clk 0:05:01.5]}
20... Rac8 {[%clk 0:05:05]} 21. Rxa7 {[%clk 0:04:40.8]} 21... Nc4 {[%clk
0:03:41.7]} 22. Bd4 {[%clk 0:04:28.3]} 22... Rf7 {[%clk 0:02:57.3]} 23. Ne6
{[%clk 0:03:30.2]} 23... Bd5 {[%clk 0:02:52]} 24. Nf4 {[%clk 0:03:26.5]} 24...
Bc5 {[%clk 0:02:31.8]} 25. Bxc5 {[%clk 0:03:02.6]} 25... Rxc5 {[%clk 0:02:32.5]}
26. Ra4 {[%clk 0:02:41.1]} 26... Bb7 {[%clk 0:01:36.4]} 27. Nd3 {[%clk
0:01:27.4]} 27... Rcc7 {[%clk 0:01:37.1]} 28. b4 {[%clk 0:01:22]} 28... h6
{[%clk 0:01:17.4]} 29. Nc5 {[%clk 0:01:16.4]} 29... Rfe7 {[%clk 0:01:06.9]} 30.
Rc1 {[%clk 0:01:07.6]} 30... Nb6 {[%clk 0:00:50.8]} 31. Ra7 {[%clk 0:01:04.7]}
31... Bd5 {[%clk 0:00:23.8]} 32. Ra6 {[%clk 0:01:00.5]} 32... Nd7 {[%clk
0:00:15.5]} 33. Rd6 {[%clk 0:00:55.8]} 33... Nxc5 {[%clk 0:00:12.9]} 34. Rxd5
{[%clk 0:00:53.7]} 34... Ne4 {[%clk 0:00:08.7]} 35. Rxc7 {[%clk 0:00:47.9]}
35... Rxc7 {[%clk 0:00:10.6]} 36. f3 {[%clk 0:00:49.4]} 36... Nc3 {[%clk
0:00:10.5]} 37. Rd8+ {[%clk 0:00:49.1]} 37... Kh7 {[%clk 0:00:11.4]} 38. Kf2
{[%clk 0:00:48.9]} 38... Rb7 {[%clk 0:00:11.2]} 39. Rd3 {[%clk 0:00:46.7]} 39...
Na2 {[%clk 0:00:08.7]} 40. Ra3 {[%clk 0:00:47]} 40... Nxb4 {[%clk 0:00:09.6]}
41. Rb3 {[%clk 0:00:48.4]} 41... Rb8 {[%clk 0:00:10.5]} 42. h4 {[%clk
0:00:48.7]} 42... Nc6 {[%clk 0:00:11.6]} 43. Rc3 {[%clk 0:00:50.2]} 43... Ne5
{[%clk 0:00:12.5]} 44. g4 {[%clk 0:00:49]} 44... h5 {[%clk 0:00:13]} 45. g5
{[%clk 0:00:47.2]} 45... Kg6 {[%clk 0:00:13.9]} 46. gxf6 {[%clk 0:00:47.4]}
46... gxf6 {[%clk 0:00:15.8]} 47. Rc1 {[%clk 0:00:43.1]} 47... Rb4 {[%clk
0:00:16.3]} 48. Rg1+ {[%clk 0:00:43.7]} 48... Kf7 {[%clk 0:00:17.5]} 49. Kg3
{[%clk 0:00:41.7]} 49... Rb2 {[%clk 0:00:18.2]} 50. Re1 {[%clk 0:00:40.1]} 50...
Ke6 {[%clk 0:00:17.1]} 51. Kf4 {[%clk 0:00:34]} 51... Rb4+ {[%clk 0:00:15.3]}
52. Kg3 {[%clk 0:00:35.1]} 52... Kf5 {[%clk 0:00:15.3]} 53. Ra1 {[%clk
0:00:33.6]} 53... Rb2 {[%clk 0:00:14]} 54. e4+ {[%clk 0:00:34.8]} 54... Kg6
{[%clk 0:00:13.7]} 55. Ra3 {[%clk 0:00:33.8]} 55... Rd2 {[%clk 0:00:12.9]} 56.
f4 {[%clk 0:00:18.6]} 56... Rd3+ {[%clk 0:00:13.3]} 57. Rxd3 {[%clk 0:00:20.1]}
57... Nxd3 {[%clk 0:00:15.2]} 58. Kf3 {[%clk 0:00:21.6]} 58... Nc5 {[%clk
0:00:10.1]} 59. Ke3 {[%clk 0:00:22.7]} 59... Kf7 {[%clk 0:00:10.4]} 60. Kd4
{[%clk 0:00:20.2]} 60... Ne6+ {[%clk 0:00:11.4]} 61. Ke3 {[%clk 0:00:21.9]}
61... Ng7 {[%clk 0:00:10.9]} 62. f5 {[%clk 0:00:22.7]} 62... Ke7 {[%clk
0:00:08.5]} 63. Kf4 {[%clk 0:00:23.9]} 63... Kd6 {[%clk 0:00:10]} 64. e5+ {[%clk
0:00:25.4]} 64... fxe5+ {[%clk 0:00:11.9]} 65. Kg5 {[%clk 0:00:26.9]} 65... e4
{[%clk 0:00:12.2]} 66. Kf4 {[%clk 0:00:22.4]} 66... Nxf5 {[%clk 0:00:11.8]} 67.
Kxe4 {[%clk 0:00:21.5]} 67... Nxh4 {[%clk 0:00:12.3]} 68. Kf4 {[%clk 0:00:23]}
68... Ng6+ {[%clk 0:00:14]} 0-1